[Event "Czech Open-E Teams 2022"]
[Site "Pardubice"]
[Date "2022.07.14"]
[Round "1.10"]
[White "Szotkowski, Jakub"]
[Black "Kraus, Ondrej"]
[Result "0-1"]
[ECO "A40"]
[WhiteElo "2344"]
[BlackElo "1993"]
[Annotator "ChessBase"]
[PlyCount "128"]
[EventDate "2022.07.14"]
[EventType "team-tourn"]
[EventCountry "CZE"]
[SourceTitle "playchess.com"]
[Source "ChessBase"]
[SourceQuality "1"]
[TimeControl "5400+30"]

1. d4 {[%emt 0:00:04]} e6 {[%emt 0:00:11]} 2. c4 {[%emt 0:00:57]} d6 {[%emt 0:00:54]} 3. Nc3 {[%emt 0:00:21]} Nf6 {[%emt 0:00:14]} 4. g3 {[%emt 0:00:55]} Nc6 {[%emt 0:00:11]} 5. Bg2 {[%emt 0:00:20]} g6 {[%emt 0:00:27]} 6. Nf3 {[%emt 0:00:38]} Bg7 {[%emt 0:00:10]} 7. O-O {[%emt 0:00:06]} O-O {[%emt 0:00:10]} 8. b3 {[%emt 0:01:14]} e5 {[%emt 0:03:29]} 9. dxe5 {[%emt 0:13:37]} Ng4 {[%emt 0:03:08]} 10. Bb2 {[%emt 0:01:11]} Ngxe5 {[%emt 0:00:53]} 11. Nxe5 {[%emt 0:01:59]} Nxe5 {[%emt 0:00:41]} 12. Qd2 {[%emt 0:00:33]} Rb8 {[%emt 0:02:55]} 13. Rad1 {[%emt 0:04:24]} Be6 {[%emt 0:00:36]} 14. h3 {[%emt 0:02:43]} a6 {[%emt 0:05:40]} 15. f4 {[%emt 0:02:26]} Nc6 {[%emt 0:03:13]} 16. Kh2 {[%emt 0:00:10]} Ne7 {[%emt 0:09:12]} 17. Ne4 {[%emt 0:04:29]} f6 {[%emt 0:00:37]} 18. Qe3 {[%emt 0:06:11]} Nf5 {[%emt 0:09:07]} 19. Qc3 {[%emt 0:01:54]} Qe7 {[%emt 0:00:52]} 20. Nf2 {[%emt 0:05:01]} b5 {[%emt 0:10:28]} 21. e4 {[%emt 0:02:41]} Nh6 {[%emt 0:00:38]} 22. c5 {[%emt 0:06:32]} dxc5 {[%emt 0:01:28]} 23. Nd3 {[%emt 0:00:06]} c4 {[%emt 0:10:38]} 24. bxc4 {[%emt 0:00:11]} b4 {[%emt 0:00:15]} 25. Qc1 {[%emt 0:06:57]} c5 {[%emt 0:00:55]} 26. Rfe1 {[%emt 0:02:25]} Nf7 {[%emt 0:07:08]} 27. e5 {[%emt 0:01:16]} f5 {[%emt 0:04:46]} 28. Bd5 {[%emt 0:06:15]} Nd8 {[%emt 0:00:35]} 29. Qe3 {[%emt 0:03:51]} Bxd5 {[%emt 0:00:45]} 30. cxd5 {[%emt 0:00:09]} c4 {[%emt 0:00:26]} 31. Nc5 {[%emt 0:03:14]} c3 {[%emt 0:01:01]} 32. Bc1 {[%emt 0:00:16]} Qa7 {[%emt 0:00:49]} 33. e6 {[%emt 0:01:45]} Re8 {[%emt 0:00:22]} 34. d6 {[%emt 0:09:17]} Rb5 {[%emt 0:01:18]} 35. e7 {[%emt 0:01:46]} Qxc5 {[%emt 0:00:55]} 36. Qxc5 {[%emt 0:00:46]} Rxc5 {[%emt 0:00:09]} 37. d7 {[%emt 0:00:04]} Rxe7 {[%emt 0:01:25]} 38. Rxe7 {[%emt 0:00:06]} Bf6 {[%emt 0:00:09]} 39. Re8+ {[%emt 0:01:04]} Kf7 {[%emt 0:00:11]} 40. Rd6 {[%emt 0:01:47]} Be7 {[%emt 0:01:19]} 41. Rd3 {[%emt 0:06:32]} Ra5 {[%emt 0:01:19]} 42. a3 {[%emt 0:01:50]} bxa3 {[%emt 0:00:40]} 43. Rxc3 {[%emt 0:00:53]} a2 {[%emt 0:00:12]} 44. Bb2 {[%emt 0:00:51]} Rb5 {[%emt 0:04:25]} 45. Ba1 {[%emt 0:00:50]} Rb1 {[%emt 0:03:15]} 46. Re3 {[%emt 0:00:06]} Rxa1 {[%emt 0:01:21]} 47. R3xe7+ {[%emt 0:00:42]} Kf6 {[%emt 0:00:32]} 48. Re6+ {[%emt 0:02:13]} Nxe6 {[%emt 0:00:41]} 49. Rxe6+ {[%emt 0:00:06]} Kxe6 {[%emt 0:00:08]} 50. d8=Q {[%emt 0:00:06]} Rh1+ {[%emt 0:00:17]} 51. Kxh1 {[%emt 0:00:36]} a1=Q+ {[%emt 0:00:16]} 52. Kg2 {[%emt 0:00:21]} Qa2+ {[%emt 0:00:19]} 53. Kg1 {[%emt 0:00:17]} Qb1+ {[%emt 0:00:27]} 54. Kf2 {[%emt 0:00:17]} Qc2+ {[%emt 0:00:07]} 55. Ke3 {[%emt 0:00:31]} Qc5+ {[%emt 0:01:11]} 56. Ke2 {[%emt 0:00:03]} Qc4+ {[%emt 0:00:11]} 57. Ke3 {[%emt 0:00:21]} Qb3+ {[%emt 0:01:20]} 58. Kf2 {[%emt 0:00:27]} Qb7 {[%emt 0:00:14]} 59. Ke3 {[%emt 0:01:55]} Qe7 {[%emt 0:01:16]} 60. Qb6+ {[%emt 0:00:38]} Kd5+ {[%emt 0:00:14]} 61. Kd2 {[%emt 0:00:15]} Qd6 {[%emt 0:01:21]} 62. Qb7+ {[%emt 0:00:14]} Kc4+ {[%emt 0:00:22]} 63. Ke3 {[%emt 0:01:20]} Qd4+ {[%emt 0:00:33]} 64. Ke2 {[%emt 0:00:06]} Qe4+ {[%emt 0:00:11]} 0-1

[Event "Czech Open-E Teams 2022"]
[Site "Pardubice"]
[Date "2022.07.14"]
[Round "1.11"]
[White "Novotny, Josef"]
[Black "Chytilek, Roman"]
[Result "0-1"]
[ECO "E11"]
[WhiteElo "2033"]
[BlackElo "2317"]
[Annotator "ChessBase"]
[PlyCount "64"]
[EventDate "2022.07.14"]
[EventType "team-tourn"]
[EventCountry "CZE"]
[SourceTitle "playchess.com"]
[Source "ChessBase"]
[SourceQuality "1"]
[TimeControl "5400+30"]

1. d4 {[%emt 0:00:06]} Nf6 {[%emt 0:00:15]} 2. Nf3 {[%emt 0:00:12]} e6 {[%emt 0:00:42]} 3. c4 {[%emt 0:00:16]} Bb4+ {[%emt 0:00:53]} 4. Bd2 {[%emt 0:00:07]} a5 {[%emt 0:00:50]} 5. a3 {[%emt 0:00:21]} Bxd2+ {[%emt 0:00:11]} 6. Nbxd2 {[%emt 0:00:05]} a4 {[%emt 0:03:06]} 7. e4 {[%emt 0:00:55]} d6 {[%emt 0:03:48]} 8. Bd3 {[%emt 0:00:13]} O-O 9. O-O e5 {[%emt 0:01:08]} 10. h3 {[%emt 0:05:04]} Nc6 {[%emt 0:01:44]} 11. dxe5 {[%emt 0:01:10]} Nxe5 {[%emt 0:00:57]} 12. Nxe5 {[%emt 0:00:45]} dxe5 {[%emt 0:00:10]} 13. Bc2 {[%emt 0:01:06]} Qd4 {[%emt 0:04:36]} 14. Rb1 {[%emt 0:03:23]} Be6 {[%emt 0:05:14]} 15. Qe2 {[%emt 0:11:21]} Rfd8 {[%emt 0:05:30]} 16. Rfd1 {[%emt 0:02:29]} Qc5 {[%emt 0:00:58]} 17. Rdc1 {[%emt 0:11:55]} g6 {[%emt 0:10:11]} 18. Kh2 {[%emt 0:02:34]} Kg7 {[%emt 0:04:43]} 19. f3 {[%emt 0:04:51]} Ng8 {[%emt 0:08:16]} 20. Bd1 {[%emt 0:02:23]} Ne7 {[%emt 0:01:57]} 21. Nf1 {[%emt 0:05:27]} Nc6 {[%emt 0:05:19]} 22. Qe3 {[%emt 0:03:44]} Nd4 {[%emt 0:03:28]} 23. Qc3 {[%emt 0:03:41]} Rd7 {[%emt 0:14:17]} 24. Ne3 {[%emt 0:02:27]} c6 {[%emt 0:00:35]} 25. Qb4 {[%emt 0:04:30]} Nxf3+ {[%emt 0:00:36]} 26. Bxf3 {[%emt 0:01:30]} Qxe3 {[%emt 0:00:03]} 27. Rd1 {[%emt 0:02:10]} Rad8 {[%emt 0:01:15]} 28. Qxa4 {[%emt 0:01:35]} Rd2 {[%emt 0:03:34]} 29. Rf1 {[%emt 0:05:09]} Qf4+ {[%emt 0:03:02]} 30. Kg1 {[%emt 0:01:19]} Bxh3 {[%emt 0:01:32]} 31. Rbd1 {[%emt 0:01:35]} Qg3 {[%emt 0:00:50]} 32. Rxd2 {[%emt 0:01:25]} Rxd2 0-1

[Event "Czech Open-E Teams 2022"]
[Site "Pardubice"]
[Date "2022.07.14"]
[Round "1.12"]
[White "Vyskocil, Neklan"]
[Black "Krasa, Marek"]
[Result "1-0"]
[ECO "B19"]
[WhiteElo "2286"]
[BlackElo "1624"]
[Annotator "ChessBase"]
[PlyCount "55"]
[EventDate "2022.07.14"]
[EventType "team-tourn"]
[EventCountry "CZE"]
[SourceTitle "playchess.com"]
[Source "ChessBase"]
[SourceQuality "1"]
[TimeControl "5400+30"]

1. e4 c6 2. d4 {[%emt 0:00:11]} d5 {[%emt 0:00:54]} 3. Nc3 {[%emt 0:00:07]} dxe4 {[%emt 0:00:21]} 4. Nxe4 {[%emt 0:00:06]} Bf5 {[%emt 0:00:20]} 5. Ng3 {[%emt 0:00:07]} Bg6 {[%emt 0:00:16]} 6. h4 {[%emt 0:00:05]} h6 {[%emt 0:00:11]} 7. Nf3 {[%emt 0:00:06]} Nd7 {[%emt 0:00:16]} 8. h5 {[%emt 0:00:33]} Bh7 {[%emt 0:04:21]} 9. Bd3 {[%emt 0:00:08]} Bxd3 {[%emt 0:00:27]} 10. Qxd3 {[%emt 0:00:06]} e6 {[%emt 0:00:21]} 11. Bd2 {[%emt 0:00:27]} Qc7 {[%emt 0:00:42]} 12. O-O-O {[%emt 0:01:03]} O-O-O {[%emt 0:00:49]} 13. Ne4 {[%emt 0:08:17]} Ngf6 {[%emt 0:03:31]} 14. Nxf6 {[%emt 0:06:11]} Nxf6 {[%emt 0:00:30]} 15. g3 {[%emt 0:00:21]} Bd6 {[%emt 0:03:04]} 16. c4 {[%emt 0:01:28]} c5 {[%emt 0:13:20]} 17. Bc3 {[%emt 0:03:46]} cxd4 {[%emt 0:04:22]} 18. Nxd4 {[%emt 0:08:50]} Bc5 {[%emt 0:04:37]} 19. Qe2 {[%emt 0:04:17]} Bxd4 {[%emt 0:02:43]} 20. Bxd4 {[%emt 0:00:09]} Qa5 {[%emt 0:05:12]} 21. Kb1 {[%emt 0:07:47]} Qf5+ {[%emt 0:03:39]} 22. Ka1 {[%emt 0:02:59]} Qa5 {[%emt 0:10:34]} 23. g4 {[%emt 0:08:51]} Kb8 {[%emt 0:07:33]} 24. Rd3 {[%emt 0:12:17]} Qg5 {[%emt 0:09:27]} 25. f3 {[%emt 0:02:16]} b6 {[%emt 0:11:22]} 26. Rg1 {[%emt 0:10:34]} Kb7 {[%emt 0:03:08]} 27. Be5 {[%emt 0:06:11]} Nxh5 {[%emt 0:00:30]} 28. Qe4+ {[%emt 0:00:30]} 1-0

[Event "Czech Open-E Teams 2022"]
[Site "Pardubice"]
[Date "2022.07.14"]
[Round "1.13"]
[White "Stalmach, Richard"]
[Black "Kotva, Milan"]
[Result "1-0"]
[ECO "A21"]
[WhiteElo "2363"]
[BlackElo "1833"]
[Annotator "ChessBase"]
[PlyCount "71"]
[EventDate "2022.07.14"]
[EventType "team-tourn"]
[EventCountry "CZE"]
[SourceTitle "playchess.com"]
[Source "ChessBase"]
[SourceQuality "1"]
[TimeControl "5400+30"]

1. d4 {[%emt 0:00:03]} d5 {[%emt 0:00:10]} 2. c4 {[%emt 0:00:08]} c6 {[%emt 0:00:09]} 3. Nc3 {[%emt 0:00:25]} e5 {[%emt 0:00:09]} 4. dxe5 {[%emt 0:01:52]} d4 {[%emt 0:00:43]} 5. Ne4 {[%emt 0:00:46]} Qa5+ {[%emt 0:00:16]} 6. Nd2 {[%emt 0:13:07]} f6 {[%emt 0:03:17]} 7. exf6 {[%emt 0:01:00]} Nxf6 {[%emt 0:00:31]} 8. Ngf3 {[%emt 0:00:41]} c5 {[%emt 0:07:29]} 9. g3 {[%emt 0:02:11]} Nc6 {[%emt 0:13:01]} 10. Bg2 {[%emt 0:00:48]} Bd6 {[%emt 0:02:13]} 11. O-O {[%emt 0:00:19]} O-O {[%emt 0:00:45]} 12. a3 {[%emt 0:06:00]} Bg4 {[%emt 0:05:18]} 13. h3 {[%emt 0:05:45]} Bh5 {[%emt 0:01:50]} 14. b4 {[%emt 0:02:06]} Qc7 {[%emt 0:08:29]} 15. bxc5 {[%emt 0:04:33]} Bxc5 {[%emt 0:05:16]} 16. Nb3 {[%emt 0:00:14]} b6 {[%emt 0:01:05]} 17. Bf4 {[%emt 0:08:40]} Qd7 {[%emt 0:03:13]} 18. Nxc5 {[%emt 0:28:11]} bxc5 {[%emt 0:00:10]} 19. Rb1 {[%emt 0:00:51]} Rae8 {[%emt 0:05:07]} 20. Rb3 {[%emt 0:06:53]} Bf7 {[%emt 0:08:39]} 21. Qb1 {[%emt 0:04:04]} Re7 {[%emt 0:03:42]} 22. Rc1 {[%emt 0:01:11]} Rfe8 {[%emt 0:03:08]} 23. e3 {[%emt 0:02:25]} Bg6 {[%emt 0:02:31]} 24. Qb2 {[%emt 0:00:21]} h6 {[%emt 0:02:31]} 25. Rb5 {[%emt 0:02:16]} Nh5 {[%emt 0:01:27]} 26. Rxc5 {[%emt 0:01:22]} Nxf4 {[%emt 0:00:13]} 27. exf4 {[%emt 0:00:13]} Be4 {[%emt 0:03:52]} 28. Ne5 {[%emt 0:01:26]} Nxe5 {[%emt 0:01:15]} 29. fxe5 {[%emt 0:00:57]} Rxe5 {[%emt 0:04:15]} 30. Rxe5 {[%emt 0:00:15]} Rxe5 {[%emt 0:00:03]} 31. Rd1 {[%emt 0:02:43]} Bxg2 {[%emt 0:02:19]} 32. Kxg2 {[%emt 0:00:05]} Qc6+ {[%emt 0:02:30]} 33. Kh2 {[%emt 0:00:05]} Qe8 {[%emt 0:09:46]} 34. Qxd4 {[%emt 0:00:12]} Re2 {[%emt 0:01:05]} 35. Qxa7 {[%emt 0:00:38]} Qf7 {[%emt 0:00:29]} 36. Rd8+ {[%emt 0:00:14]} 1-0

[Event "Czech Open-E Teams 2022"]
[Site "Pardubice"]
[Date "2022.07.14"]
[Round "1.14"]
[White "Martin Rueda, Daniel"]
[Black "Mica, Marek"]
[Result "1/2-1/2"]
[ECO "B15"]
[WhiteElo "2262"]
[BlackElo "2304"]
[Annotator "ChessBase"]
[PlyCount "95"]
[EventDate "2022.07.14"]
[EventType "team-tourn"]
[EventCountry "CZE"]
[SourceTitle "playchess.com"]
[Source "ChessBase"]
[SourceQuality "1"]
[TimeControl "5400+30"]

1. e4 {[%emt 0:00:03]} c6 {[%emt 0:00:11]} 2. d4 {[%emt 0:00:12]} d5 {[%emt 0:00:08]} 3. Nc3 {[%emt 0:00:25]} dxe4 {[%emt 0:00:17]} 4. Nxe4 {[%emt 0:00:15]} Nf6 {[%emt 0:00:36]} 5. Nxf6+ {[%emt 0:00:50]} exf6 {[%emt 0:00:08]} 6. Nf3 {[%emt 0:01:30]} Bd6 {[%emt 0:00:13]} 7. Be2 {[%emt 0:01:23]} O-O {[%emt 0:00:08]} 8. O-O {[%emt 0:00:06]} Re8 {[%emt 0:01:11]} 9. Be3 {[%emt 0:01:13]} Bg4 {[%emt 0:00:44]} 10. Qd2 {[%emt 0:00:56]} Nd7 {[%emt 0:01:10]} 11. Rfe1 {[%emt 0:01:48]} Qc7 {[%emt 0:05:11]} 12. h3 {[%emt 0:02:52]} Bh5 {[%emt 0:00:53]} 13. c4 {[%emt 0:11:52]} Rad8 {[%emt 0:00:25]} 14. Rad1 {[%emt 0:02:00]} Nf8 {[%emt 0:01:30]} 15. Nh4 {[%emt 0:04:19]} Bg6 {[%emt 0:03:34]} 16. Bg4 {[%emt 0:03:45]} Be4 {[%emt 0:04:57]} 17. Bf5 {[%emt 0:06:46]} g6 {[%emt 0:12:48]} 18. Bxe4 {[%emt 0:01:01]} Rxe4 {[%emt 0:00:20]} 19. Nf3 {[%emt 0:00:23]} f5 {[%emt 0:05:44]} 20. Qc2 {[%emt 0:01:14]} Bb4 {[%emt 0:07:43]} 21. Rf1 {[%emt 0:03:52]} Qe7 {[%emt 0:04:23]} 22. a3 {[%emt 0:02:39]} Bd6 {[%emt 0:03:12]} 23. Bd2 {[%emt 0:01:39]} Ne6 {[%emt 0:02:49]} 24. Rfe1 {[%emt 0:03:22]} Rxe1+ {[%emt 0:02:11]} 25. Rxe1 {[%emt 0:00:10]} Bb8 {[%emt 0:04:04]} 26. Bc3 {[%emt 0:03:42]} Qd6 {[%emt 0:00:52]} 27. g3 {[%emt 0:00:39]} h5 {[%emt 0:01:02]} 28. Qd2 {[%emt 0:04:55]} Qf8 {[%emt 0:05:48]} 29. d5 {[%emt 0:08:07]} f4 {[%emt 0:05:59]} 30. Qd3 {[%emt 0:05:38]} Ng7 {[%emt 0:04:17]} 31. g4 {[%emt 0:01:31]} b5 {[%emt 0:04:44]} 32. b3 {[%emt 0:02:25]} bxc4 {[%emt 0:00:49]} 33. bxc4 {[%emt 0:00:13]} cxd5 {[%emt 0:02:58]} 34. cxd5 {[%emt 0:00:02]} hxg4 {[%emt 0:01:50]} 35. hxg4 {[%emt 0:00:11]} Qc5 {[%emt 0:00:31]} 36. Rd1 {[%emt 0:01:26]} Bd6 {[%emt 0:01:19]} 37. a4 {[%emt 0:02:29]} Re8 {[%emt 0:04:22]} 38. Ng5 {[%emt 0:04:24]} Be5 {[%emt 0:03:01]} 39. Ne4 {[%emt 0:05:12]} Qc8 {[%emt 0:00:09]} 40. Bxe5 {[%emt 0:01:00]} Rxe5 {[%emt 0:00:22]} 41. f3 {[%emt 0:00:27]} f5 {[%emt 0:01:43]} 42. Nf6+ {[%emt 0:01:33]} Kf7 {[%emt 0:00:17]} 43. g5 {[%emt 0:00:12]} Re3 {[%emt 0:01:17]} 44. Qd4 {[%emt 0:03:48]} Qc2 {[%emt 0:01:06]} 45. Qxa7+ {[%emt 0:01:37]} Re7 {[%emt 0:00:13]} 46. Qd4 Re2 {[%emt 0:00:43]} 47. Qa7+ {[%emt 0:00:24]} Re7 {[%emt 0:00:05]} 48. Qd4 {[%emt 0:00:02]} 1/2-1/2

[Event "Czech Open-E Teams 2022"]
[Site "Pardubice"]
[Date "2022.07.14"]
[Round "1.15"]
[White "Frank, Adam"]
[Black "Jirsa, Lukas"]
[Result "1-0"]
[ECO "B42"]
[WhiteElo "2313"]
[BlackElo "2002"]
[Annotator "ChessBase"]
[PlyCount "65"]
[EventDate "2022.07.14"]
[EventType "team-tourn"]
[EventCountry "CZE"]
[SourceTitle "playchess.com"]
[Source "ChessBase"]
[SourceQuality "1"]
[TimeControl "5400+30"]

1. e4 {[%emt 0:00:03]} c5 {[%emt 0:00:05]} 2. Nf3 {[%emt 0:00:03]} e6 {[%emt 0:00:16]} 3. d4 {[%emt 0:00:04]} cxd4 {[%emt 0:00:03]} 4. Nxd4 {[%emt 0:00:04]} a6 {[%emt 0:00:19]} 5. Bd3 {[%emt 0:00:00]} Qc7 {[%emt 0:00:51]} 6. O-O Nf6 {[%emt 0:09:19]} 7. Qe2 {[%emt 0:08:06]} d6 {[%emt 0:00:30]} 8. Nc3 {[%emt 0:00:15]} Be7 {[%emt 0:00:13]} 9. Be3 {[%emt 0:00:12]} O-O {[%emt 0:00:08]} 10. f4 {[%emt 0:00:16]} Nbd7 {[%emt 0:00:10]} 11. Rae1 {[%emt 0:01:51]} b5 {[%emt 0:01:46]} 12. a3 {[%emt 0:00:39]} Bb7 {[%emt 0:00:16]} 13. Kh1 {[%emt 0:18:19]} Nc5 {[%emt 0:05:47]} 14. Bg1 {[%emt 0:00:05]} d5 {[%emt 0:09:59]} 15. e5 {[%emt 0:00:46]} Nfe4 16. Bxe4 {[%emt 0:00:10]} Nxe4 {[%emt 0:00:27]} 17. Nxe4 {[%emt 0:00:09]} dxe4 {[%emt 0:00:02]} 18. c3 {[%emt 0:00:51]} Rad8 {[%emt 0:02:22]} 19. Qg4 {[%emt 0:05:35]} Rfe8 {[%emt 0:21:31]} 20. Re3 {[%emt 0:01:22]} Bf8 {[%emt 0:01:30]} 21. Bf2 {[%emt 0:01:56]} Kh8 {[%emt 0:04:04]} 22. Bh4 {[%emt 0:01:02]} Rd7 {[%emt 0:03:38]} 23. Rg3 {[%emt 0:01:48]} g6 {[%emt 0:02:55]} 24. Bf6+ {[%emt 0:09:57]} Kg8 {[%emt 0:00:02]} 25. Rh3 {[%emt 0:00:31]} Bg7 {[%emt 0:01:40]} 26. f5 {[%emt 0:05:21]} Rxd4 {[%emt 0:03:17]} 27. Qh4 {[%emt 0:01:50]} h5 {[%emt 0:01:24]} 28. fxg6 {[%emt 0:01:11]} fxg6 {[%emt 0:01:43]} 29. cxd4 {[%emt 0:00:21]} Qc4 {[%emt 0:02:58]} 30. Re1 {[%emt 0:01:58]} Bh6 {[%emt 0:01:31]} 31. Rg3 {[%emt 0:00:53]} Kh7 {[%emt 0:00:28]} 32. Rc3 {[%emt 0:00:05]} Qd5 {[%emt 0:02:37]} 33. Rc7+ {[%emt 0:00:06]} 1-0

[Event "Czech Open-E Teams 2022"]
[Site "Pardubice"]
[Date "2022.07.14"]
[Round "1.16"]
[White "Svab, Jiri"]
[Black "Gnojek, Petr"]
[Result "0-1"]
[ECO "B23"]
[WhiteElo "1834"]
[BlackElo "2295"]
[Annotator "ChessBase"]
[PlyCount "48"]
[EventDate "2022.07.14"]
[EventType "team-tourn"]
[EventCountry "CZE"]
[SourceTitle "playchess.com"]
[Source "ChessBase"]
[SourceQuality "1"]
[TimeControl "5400+30"]

1. e4 c5 2. Nc3 e6 3. g3 Nc6 4. Bg2 g6 5. d3 Bg7 6. Be3 Nd4 7. Nge2 Ne7 8. O-O O-O 9. Rb1 Nec6 10. Qd2 d6 11. a3 a5 12. Nf4 a4 13. h4 h5 14. Nh3 Bd7 15. Ne2 e5 16. Nxd4 Nxd4 17. Bh6 Bxh3 18. Bxg7 Kxg7 19. f4 Bxg2 20. Kxg2 f5 21. fxe5 dxe5 22. c3 Ne6 23. exf5 Rxf5 24. Qe3 Qd5+ 0-1

[Event "Czech Open-E Teams 2022"]
[Site "Pardubice"]
[Date "2022.07.14"]
[Round "1.17"]
[White "Vermirovsky, Vlastimil"]
[Black "Svoboda, Vaclav"]
[Result "0-1"]
[ECO "B48"]
[WhiteElo "2033"]
[BlackElo "2397"]
[Annotator "ChessBase"]
[PlyCount "44"]
[EventDate "2022.07.14"]
[EventType "team-tourn"]
[EventCountry "CZE"]
[SourceTitle "playchess.com"]
[Source "ChessBase"]
[SourceQuality "1"]
[TimeControl "5400+30"]

1. e4 c5 2. Nf3 Nc6 3. d4 cxd4 4. Nxd4 Qc7 5. Nc3 e6 6. Be3 a6 7. Qd2 Nf6 8. O-O-O Bb4 9. f3 Ne5 10. Nb3 b5 11. Bd4 Bb7 12. Kb1 Be7 13. Qe1 Rc8 14. Qf2 O-O 15. g4 b4 16. Bb6 Qb8 17. g5 Nfg4 18. fxg4 bxc3 19. Bg2 cxb2 20. h4 Nc4 21. Ba7 Qc7 22. Qd4 Na3+ 0-1

[Event "Czech Open-E Teams 2022"]
[Site "Pardubice"]
[Date "2022.07.14"]
[Round "1.18"]
[White "Vyprachticky, David"]
[Black "Zemlicka, Vit"]
[Result "1/2-1/2"]
[ECO "C55"]
[WhiteElo "2302"]
[BlackElo "1937"]
[Annotator "ChessBase"]
[PlyCount "101"]
[EventDate "2022.07.14"]
[EventType "team-tourn"]
[EventCountry "CZE"]
[SourceTitle "playchess.com"]
[Source "ChessBase"]
[SourceQuality "1"]
[TimeControl "5400+30"]

1. e4 {[%emt 0:00:05]} e5 {[%emt 0:00:11]} 2. Nf3 {[%emt 0:00:07]} Nc6 {[%emt 0:00:04]} 3. Bc4 {[%emt 0:00:33]} Nf6 {[%emt 0:00:05]} 4. d3 {[%emt 0:00:27]} h6 {[%emt 0:00:07]} 5. O-O {[%emt 0:02:15]} d6 {[%emt 0:01:39]} 6. a4 {[%emt 0:02:00]} g6 {[%emt 0:04:29]} 7. a5 {[%emt 0:00:45]} a6 {[%emt 0:00:33]} 8. c3 {[%emt 0:07:19]} Bg7 {[%emt 0:02:23]} 9. Re1 {[%emt 0:01:14]} O-O {[%emt 0:00:34]} 10. h3 {[%emt 0:00:34]} g5 {[%emt 0:12:45]} 11. Nbd2 {[%emt 0:06:24]} Ne7 {[%emt 0:16:00]} 12. d4 {[%emt 0:01:33]} Ng6 {[%emt 0:02:45]} 13. dxe5 {[%emt 0:11:00]} dxe5 {[%emt 0:00:50]} 14. Qc2 {[%emt 0:00:56]} Nh5 {[%emt 0:04:46]} 15. Nf1 {[%emt 0:04:24]} Qf6 {[%emt 0:11:33]} 16. Ne3 {[%emt 0:00:30]} c6 {[%emt 0:01:03]} 17. Ng4 {[%emt 0:01:54]} Qe7 {[%emt 0:09:30]} 18. b3 {[%emt 0:04:14]} Re8 {[%emt 0:03:27]} 19. Ba3 {[%emt 0:00:48]} Qc7 {[%emt 0:00:11]} 20. Bc5 {[%emt 0:01:00]} Be6 {[%emt 0:02:07]} 21. Bf1 {[%emt 0:03:09]} Nf6 {[%emt 0:04:32]} 22. Bb6 {[%emt 0:01:50]} Qb8 {[%emt 0:02:01]} 23. Nxf6+ {[%emt 0:04:33]} Bxf6 {[%emt 0:00:07]} 24. Nd2 {[%emt 0:00:56]} Bd8 {[%emt 0:05:42]} 25. Be3 {[%emt 0:00:37]} Bc7 {[%emt 0:00:41]} 26. Nc4 {[%emt 0:00:17]} Qd8 {[%emt 0:01:01]} 27. Nb6 {[%emt 0:02:53]} Rb8 {[%emt 0:00:56]} 28. Bc4 {[%emt 0:03:47]} Qe7 {[%emt 0:01:54]} 29. Bxe6 {[%emt 0:00:51]} Qxe6 {[%emt 0:00:00]} 30. Na4 {[%emt 0:00:51]} Qe7 {[%emt 0:02:03]} 31. b4 {[%emt 0:01:48]} Rbd8 {[%emt 0:02:42]} 32. g3 {[%emt 0:01:52]} Nf8 {[%emt 0:00:44]} 33. Kg2 {[%emt 0:01:13]} Ne6 {[%emt 0:01:08]} 34. Rh1 {[%emt 0:00:35]} Kg7 {[%emt 0:00:33]} 35. Qe2 {[%emt 0:00:25]} Qf6 {[%emt 0:03:10]} 36. h4 {[%emt 0:00:45]} Rh8 {[%emt 0:00:07]} 37. hxg5 {[%emt 0:05:15]} hxg5 {[%emt 0:00:10]} 38. Qg4 {[%emt 0:00:24]} Rxh1 {[%emt 0:03:02]} 39. Rxh1 {[%emt 0:00:06]} Rh8 {[%emt 0:00:08]} 40. Rxh8 {[%emt 0:01:12]} Kxh8 {[%emt 0:00:02]} 41. Qf5 {[%emt 0:00:27]} Kg7 {[%emt 0:00:27]} 42. Qxf6+ {[%emt 0:01:36]} Kxf6 {[%emt 0:00:03]} 43. Kf3 {[%emt 0:00:07]} Kg6 {[%emt 0:00:51]} 44. Kg4 {[%emt 0:00:27]} f6 {[%emt 0:01:10]} 45. Nb2 {[%emt 0:02:42]} c5 {[%emt 0:01:11]} 46. Nd3 {[%emt 0:04:46]} cxb4 {[%emt 0:00:24]} 47. cxb4 {[%emt 0:00:09]} Bd6 {[%emt 0:00:31]} 48. Bc5 {[%emt 0:01:17]} Bc7 {[%emt 0:03:09]} 49. Be3 {[%emt 0:05:16]} Bd6 {[%emt 0:00:07]} 50. Bc5 {[%emt 0:02:12]} Bc7 {[%emt 0:00:03]} 51. Be3 {[%emt 0:00:04]} 1/2-1/2

[Event "Czech Open-E Teams 2022"]
[Site "Pardubice"]
[Date "2022.07.14"]
[Round "1.19"]
[White "Kahanek, Martin"]
[Black "Oresky, Jan"]
[Result "0-1"]
[ECO "A48"]
[WhiteElo "1856"]
[BlackElo "2274"]
[Annotator "ChessBase"]
[PlyCount "72"]
[EventDate "2022.07.14"]
[EventType "team-tourn"]
[EventCountry "CZE"]
[SourceTitle "playchess.com"]
[Source "ChessBase"]
[SourceQuality "1"]
[TimeControl "5400+30"]

1. d4 {[%emt 0:00:05]} Nf6 {[%emt 0:00:08]} 2. Nf3 {[%emt 0:00:08]} g6 {[%emt 0:00:12]} 3. Bf4 {[%emt 0:00:18]} Bg7 {[%emt 0:01:06]} 4. h3 {[%emt 0:00:39]} O-O {[%emt 0:00:39]} 5. e3 {[%emt 0:00:21]} b6 {[%emt 0:02:36]} 6. Be2 {[%emt 0:02:11]} Bb7 {[%emt 0:00:36]} 7. O-O {[%emt 0:00:12]} Ne4 {[%emt 0:04:26]} 8. Nbd2 {[%emt 0:03:36]} f5 {[%emt 0:00:19]} 9. c4 {[%emt 0:14:31]} c5 {[%emt 0:04:23]} 10. a3 {[%emt 0:10:02]} h6 {[%emt 0:09:09]} 11. Qc2 {[%emt 0:03:39]} d6 {[%emt 0:01:23]} 12. Rad1 {[%emt 0:01:57]} Nd7 {[%emt 0:03:42]} 13. d5 {[%emt 0:05:39]} Nxd2 {[%emt 0:05:57]} 14. Rxd2 {[%emt 0:04:48]} g5 {[%emt 0:05:55]} 15. Bh2 {[%emt 0:06:45]} Qe8 {[%emt 0:08:03]} 16. Bd3 {[%emt 0:05:03]} Qf7 {[%emt 0:02:04]} 17. Re2 {[%emt 0:04:00]} e5 {[%emt 0:09:18]} 18. dxe6 {[%emt 0:01:30]} Qxe6 {[%emt 0:00:06]} 19. Nd2 {[%emt 0:06:29]} Ne5 {[%emt 0:09:06]} 20. b3 {[%emt 0:02:47]} Rad8 {[%emt 0:05:06]} 21. e4 {[%emt 0:02:43]} f4 {[%emt 0:00:28]} 22. f3 {[%emt 0:00:30]} Nc6 {[%emt 0:04:44]} 23. Ree1 {[%emt 0:01:56]} Bd4+ {[%emt 0:02:04]} 24. Kh1 {[%emt 0:00:16]} Be5 {[%emt 0:00:07]} 25. Be2 {[%emt 0:02:10]} h5 {[%emt 0:00:58]} 26. Qd3 {[%emt 0:03:14]} Qh6 {[%emt 0:01:38]} 27. Bd1 {[%emt 0:00:47]} Rd7 {[%emt 0:02:13]} 28. Nb1 {[%emt 0:01:08]} Rg7 {[%emt 0:01:12]} 29. Nc3 {[%emt 0:01:14]} Bd4 {[%emt 0:01:36]} 30. Nd5 {[%emt 0:02:21]} Ne5 {[%emt 0:00:21]} 31. Qd2 {[%emt 0:01:49]} Bc8 {[%emt 0:03:22]} 32. Bg1 {[%emt 0:02:50]} Bxg1 {[%emt 0:01:07]} 33. Rxg1 {[%emt 0:03:32]} g4 {[%emt 0:00:22]} 34. Kh2 {[%emt 0:02:58]} Qg5 {[%emt 0:02:01]} 35. Ref1 {[%emt 0:01:15]} g3+ {[%emt 0:02:43]} 36. Kh1 {[%emt 0:00:05]} Qh4 {[%emt 0:00:10]} 0-1